[Event "DVM U14 2019"]
[Site "Magedburg"]
[Date "2019.12.27"]
[Round "1"]
[White "Rasch, Lukas"]
[Black "Joppich, Til"]
[Result "0-1"]
[ECO "A20"]
[WhiteElo "1596"]
[BlackElo "1916"]
[Annotator "NA"]
[PlyCount "118"]
[EventDate "2019.12.27"]
[EventType "team-tourn"]
[EventRounds "7"]
[EventCountry "GER"]
[SourceTitle "playchess.com"]
[Source "ChessBase"]
[SourceQuality "1"]
[WhiteTeam "SF Essen-Katernberg"]
[BlackTeam "Schachzwerge Magdeburg"]
[TimeControl "40/5400+30:1800+30"]

1. c4 {[%emt 0:00:00]} e5 {[%emt 0:00:05]} 2. e3 {[%emt 0:00:00]} Nf6 {[%emt 0:03:49]} 3. a3 {[%emt 0:01:37]} c5 {[%emt 0:07:15]} 4. g3 {[%emt 0:03:52]} Nc6 {[%emt 0:01:22]} 5. Bg2 {[%emt 0:00:28]} Be7 {[%emt 0:01:20] unterminated} 6. Nc3 {[%emt 0:00:59]} d6 {[%emt 0:03:35] unterminated} 7. Nge2 {[%emt 0:01:55] unterminated} Be6 {[%emt 0:13:47] unterminated} 8. d3 {[%emt 0:02:46] unterminated} Qd7 {[%emt 0:04:31] unterminated} 9. Rb1 {[%emt 0:03:24]} d5 {[%emt 0:02:47]} 10. cxd5 {[%emt 0:01:28] unterminated} Nxd5 {[%emt 0:00:17] unterminated} 11. Qc2 {[%emt 0:02:47] unterminated} Rd8 {[%emt 0:07:27] unterminated} 12. O-O {[%emt 0:02:41] unterminated} O-O {[%emt 0:05:23]} 13. Rd1 {[%emt 0:01:37] unterminated} b6 {[%emt 0:02:45]} 14. b3 {[%emt 0:01:27] unterminated} f5 {[%emt 0:05:06] unterminated} 15. f4 {[%emt 0:13:01] unterminated} ({White should try} 15. Nxd5 $15 Bxd5 16. Bb2) 15... Nxc3 {[%emt 0:05:52]} 16. Qxc3 {[%emt 0:01:29] unterminated} e4 {[%emt 0:02:11] unterminated} 17. d4 {[%emt 0:07:47] unterminated} Bf6 {[%emt 0:03:46]} 18. Bb2 {[%emt 0:01:06] unterminated} cxd4 {[%emt 0:01:29]} 19. exd4 {[%emt 0:00:41] unterminated} Na5 {[%emt 0:03:37]} 20. Ba1 {[%emt 0:02:55]} Rc8 {[%emt 0:02:03]} 21. Qe3 {[%emt 0:06:52]} Bd5 {[%emt 0:02:03]} 22. g4 {[%emt 0:03:27]} fxg4 {[%emt 0:08:47]} 23. Bxe4 {[%emt 0:00:09]} Bxe4 {[%emt 0:00:10]} 24. Qxe4 {[%emt 0:00:09]} Rfe8 {[%emt 0:00:18]} 25. Qd3 {[%emt 0:01:28]} Qd5 {[%emt 0:01:53]} 26. Ng3 {[%emt 0:02:05]} Rcd8 {[%emt 0:02:46]} 27. Kf2 {[%emt 0:06:29]} Nc6 {[%emt 0:01:13]} 28. Ne2 {[%emt 0:00:20]} Re4 {[%emt 0:01:54]} 29. Rbc1 {[%emt 0:01:29]} Rde8 {[%emt 0:02:44]} 30. Rc2 {[%emt 0:02:35]} Na5 {[%emt 0:00:34]} 31. Rb2 {[%emt 0:01:54]} Re3 {[%emt 0:00:25]} 32. Qxe3 {[%emt 0:02:54]} Rxe3 {[%emt 0:00:13]} 33. Kxe3 {[%emt 0:00:02]} Qf3+ {[%emt 0:01:02]} 34. Kd2 {[%emt 0:00:10]} Nxb3+ {[%emt 0:00:30]} 35. Rxb3 {[%emt 0:01:46]} Qxb3 {[%emt 0:00:06]} 36. Bc3 {[%emt 0:01:38]} Qxa3 {[%emt 0:00:27]} 37. Ra1 {[%emt 0:01:01]} Qe7 {[%emt 0:00:05]} 38. Ng3 {[%emt 0:00:02]} Qd7 {[%emt 0:01:22]} 39. Ke3 {[%emt 0:00:37] unterminated} b5 {[%emt 0:00:48]} 40. Rd1 {[%emt 0:00:56]} Qe7+ {[%emt 0:00:26]} 41. Ne4 {[%emt 0:30:37]} b4 {[%emt 0:30:28]} 42. Rb1 {[%emt 0:01:52]} bxc3 {[%emt 0:00:00]} 43. Rb8+ {[%emt 0:00:00]} Kf7 {[%emt 0:00:00]} 44. Rb7 {[%emt 0:00:00]} Qxb7 {[%emt 0:00:00]} 45. Nd6+ {[%emt 0:00:00]} Ke6 {[%emt 0:00:00]} 46. Nxb7 {[%emt 0:00:00]} Kd5 {[%emt 0:00:00] unterminated} 47. Kd3 {[%emt 0:00:00]} Bxd4 {[%emt 0:00:00] unterminated} 48. Na5 {[%emt 0:00:00] unterminated} h5 {[%emt 0:00:00]} 49. Nb3 {[%emt 0:00:00]} Bf6 {[%emt 0:00:00] unterminated} 50. Nc1 {[%emt 0:00:00]} a5 {[%emt 0:00:00]} 51. Nb3 {[%emt 0:00:00]} a4 {[%emt 0:00:00]} 52. Na5 {[%emt 0:00:00]} h4 {[%emt 0:00:00]} 53. Nc4 {[%emt 0:00:00]} Kc5 {[%emt 0:00:00]} 54. Ne3 {[%emt 0:00:00] unterminated} g3 {[%emt 0:00:00]} 55. h3 {[%emt 0:00:00]} a3 {[%emt 0:00:00]} 56. Nc4 {[%emt 0:00:00]} a2 {[%emt 0:00:00]} 57. Na5 {[%emt 0:00:00]} Kb4 {[%emt 0:00:00]} 58. Nc6+ {[%emt 0:00:00]} Ka3 {[%emt 0:00:00]} 59. Nd4 {[%emt 0:00:00]} Bxd4 {[%emt 0:00:00] normal} 0-1

[Event "DVM U14 2019"]
[Site "Magedburg"]
[Date "2019.12.27"]
[Round "1"]
[White "Popovici, Liviu-Daniel"]
[Black "von Krosigk, Florian"]
[Result "0-1"]
[ECO "C50"]
[WhiteElo "1526"]
[BlackElo "1984"]
[Annotator "NA RC"]
[PlyCount "74"]
[EventDate "2019.12.27"]
[EventType "team-tourn"]
[EventRounds "7"]
[EventCountry "GER"]
[SourceTitle "playchess.com"]
[Source "ChessBase"]
[SourceQuality "1"]
[WhiteTeam "SC Vaterstetten-Grasbrunn"]
[BlackTeam "Hamburger SK"]
[TimeControl "40/5400+30:1800+30"]

1. e4 {[%emt 0:00:00]} e5 {[%emt 0:00:00]} 2. Nf3 {[%emt 0:00:00]} Nc6 3. Bc4 {[%emt 0:00:18]} Bc5 {[%emt 0:00:11]} 4. d3 {[%emt 0:01:08]} Nf6 {[%emt 0:01:02]} 5. Nc3 {unterminated} a6 {[%emt 0:02:47]} 6. a3 {[%emt 0:02:06]} d6 {[%emt 0:01:04] unterminated} 7. h3 h6 {[%emt 0:01:50]} 8. O-O {[%emt 0:04:12] unterminated C50: Hungarian Defence and Giuoco Pianissimo} g5 {[%emt 0:07:12]} (8... O-O 9. Ne2 Ne7 10. Ng3 Ng6 11. c3 b5 12. Bb3 Bb6 13. a4 Bb7 14. axb5 axb5 15. Rxa8 Bxa8 16. Be3 Bxe3 17. fxe3 {½-½ (42) Safarli,E (2657)-Khairullin,I (2652) Skopje 2015}) 9. Kh1 $146 {[%emt 0:03:47]} ({Predecessor:} 9. g4 Qe7 10. Nd5 Nxd5 11. Bxd5 f6 12. Bxc6+ bxc6 13. d4 Bb6 14. dxe5 dxe5 15. Kg2 h5 {0-1 (27) Asgarov,M (2260)-Rzayev,B (2416) Baku 2014}) 9... g4 {[%emt 0:02:21] unterminated} 10. Ng1 {[%emt 0:03:22] unterminated} gxh3 {[%emt 0:12:36]} 11. gxh3 {[%emt 0:07:05] unterminated} Nd4 {[%emt 0:08:15] unterminated} 12. Nce2 {[%emt 0:07:35] unterminated} Qe7 {[%emt 0:14:17] unterminated} 13. Nxd4 {[%emt 0:02:18]} Bxd4 {[%emt 0:14:23]} 14. Qf3 {unterminated} Be6 {[%emt 0:03:01] unterminated} 15. Ba2 {[%emt 0:07:22]} O-O-O {[%emt 0:01:00]} 16. c3 {[%emt 0:03:51]} Ba7 {[%emt 0:01:00]} 17. Be3 {[%emt 0:00:54]} Kb8 {[%emt 0:00:43] unterminated} 18. Bxa7+ {[%emt 0:01:48]} Kxa7 {[%emt 0:00:04]} 19. Ne2 {[%emt 0:03:30] unterminated} Nh7 {[%emt 0:03:11]} (19... d5 $17 20. exd5 Nxd5) 20. Bxe6 {[%emt 0:01:52]} fxe6 {[%emt 0:01:50]} 21. Ng3 {[%emt 0:03:12]} Ng5 {[%emt 0:01:09]} 22. Qe3+ {[%emt 0:02:07]} Kb8 {[%emt 0:00:30]} 23. Kh2 {[%emt 0:01:11]} Rdf8 {[%emt 0:01:19] unterminated} 24. f4 exf4 {[%emt 0:00:52]} 25. Rxf4 {[%emt 0:09:50]} Rxf4 {[%emt 0:00:04]} 26. Qxf4 {[%emt 0:00:08]} Rf8 {[%emt 0:00:06]} 27. Qe3 {[%emt 0:01:05]} Rf3 {[%emt 0:01:43]} 28. Qe2 {[%emt 0:01:27]} Rf4 {[%emt 0:01:05]} 29. Kg2 {[%emt 0:03:51]} Rh4 {[%emt 0:01:10]} 30. Rh1 {[%emt 0:00:53]} Qg7 {[%emt 0:02:20] unterminated} 31. Qf2 {[%emt 0:03:00]} Qe5 $11 {[%emt 0:01:30] unterminated keeps the balance.} 32. Qf8+ $2 {[%emt 0:02:50]} (32. Ne2 $18 Rh5 33. Qf8+ Ka7 34. Qf4) 32... Ka7 {[%emt 0:00:08]} 33. Qf2+ {[%emt 0:00:20] unterminated} b6 {[%emt 0:03:30]} 34. Qe3 $19 {[%emt 0:03:13]} (34. Ne2 $16 Rh5 35. h4 Nxe4 36. dxe4) 34... Qb5 {[%emt 0:05:20]} 35. Qd2 {[%emt 0:02:42]} d5 36. e5 {[%emt 0:03:52]} d4 {[%emt 0:02:19]} 37. c4 {[%emt 0:04:02]} Qc6+ {[%emt 0:03:38] normal} 0-1

[Event "DVM U14 2019"]
[Site "Magedburg"]
[Date "2019.12.27"]
[Round "1"]
[White "Yergin, Danyar"]
[Black "Frank, Marek"]
[Result "0-1"]
[ECO "B21"]
[WhiteElo "1428"]
[BlackElo "1430"]
[Annotator "NA RC"]
[PlyCount "40"]
[EventDate "2019.12.27"]
[EventType "team-tourn"]
[EventRounds "7"]
[EventCountry "GER"]
[SourceTitle "playchess.com"]
[Source "ChessBase"]
[SourceQuality "1"]
[WhiteTeam "SK Frankenthal"]
[BlackTeam "ESV Gera"]
[TimeControl "40/5400+30:1800+30"]

1. e4 {[%emt 0:00:00]} c5 {[%emt 0:00:00]} 2. f4 {[%emt 0:00:00]} g6 {[%emt 0:00:05]} 3. Nf3 {[%emt 0:33:03]} Bg7 {[%emt 0:01:38]} 4. Nc3 {[%emt 0:00:30]} Nc6 {[%emt 0:00:30]} 5. Bc4 {[%emt 0:00:35]} d6 {[%emt 0:02:23]} 6. O-O {[%emt 0:02:32]} e6 {[%emt 0:03:05]} 7. d3 {[%emt 0:02:24]} Nge7 {[%emt 0:01:58]} 8. Qe1 {[%emt 0:03:05]} O-O {[%emt 0:02:12]} 9. g4 {[%emt 0:35:39]} d5 {[%emt 0:05:35]} 10. Bb3 {[%emt 0:03:44]} a6 {[%emt 0:06:07]} 11. f5 {[%emt 0:08:52]} b5 {[%emt 0:03:46]} 12. exd5 exd5 {[%emt 0:01:04]} 13. a3 {[%emt 0:04:30]} c4 {[%emt 0:02:05]} 14. dxc4 {[%emt 0:00:02]} dxc4 {[%emt 0:00:13]} 15. Ba2 {[%emt 0:00:04]} gxf5 {[%emt 0:00:27]} 16. gxf5 {[%emt 0:00:22]} Nxf5 {[%emt 0:00:16]} 17. Rf2 {[%emt 0:01:14]} Ncd4 {[%emt 0:01:18]} 18. Qe4 {[%emt 0:01:18]} Rb8 {[%emt 0:04:30]} 19. Nd5 {[%emt 0:00:51]} Bb7 {[%emt 0:01:33]} 20. Qg4 {[%emt 0:00:39]} Qxd5 {[%emt 0:00:54] normal} 0-1

[Event "DVM U14 2019"]
[Site "Magedburg"]
[Date "2019.12.27"]
[Round "2"]
[White "Weihrauch, Jakob"]
[Black "Gutewort, Paul Emil"]
[Result "1-0"]
[ECO "B12"]
[WhiteElo "2169"]
[BlackElo "1714"]
[Annotator "NA"]
[PlyCount "35"]
[EventDate "2019.12.27"]
[EventType "team-tourn"]
[EventRounds "7"]
[EventCountry "GER"]
[SourceTitle "playchess.com"]
[Source "ChessBase"]
[SourceQuality "1"]
[WhiteTeam "Hamburger SK"]
[BlackTeam "SF Nordost Berlin"]
[TimeControl "40/5400+30:1800+30"]

1. e4 {[%emt 0:00:00]} c6 {[%emt 0:04:38]} 2. d4 {[%emt 0:00:00]} d5 {[%emt 0:00:05]} 3. e5 {[%emt 0:00:14]} Bf5 {[%emt 0:00:05]} 4. h4 {[%emt 0:00:21]} h6 {[%emt 0:00:20]} 5. g4 {[%emt 0:00:48]} Bh7 {[%emt 0:00:44]} 6. e6 {[%emt 0:00:21]} fxe6 {[%emt 0:04:54]} 7. Bd3 {[%emt 0:00:48]} Bxd3 {[%emt 0:01:43]} 8. Qxd3 {[%emt 0:00:05]} Qd6 {[%emt 0:08:30]} 9. Qg6+ {[%emt 0:05:21]} Kd8 {[%emt 0:00:07]} 10. Nf3 {[%emt 0:05:43]} Nd7 {[%emt 0:00:51]} 11. Qf7 {[%emt 0:03:37]} Ngf6 {[%emt 0:05:19]} 12. g5 {[%emt 0:02:55]} Ne4 {[%emt 0:06:59]} 13. Nbd2 {[%emt 0:10:41]} Nxd2 {[%emt 0:07:29]} 14. Bxd2 {[%emt 0:00:35]} e5 {[%emt 0:01:12]} 15. gxh6 {[%emt 0:04:45]} gxh6 {[%emt 0:01:05]} 16. Bc3 {[%emt 0:01:16]} e4 {[%emt 0:01:31]} 17. Ne5 {[%emt 0:00:16]} Qf6 {[%emt 0:03:10]} 18. Qxf6 {[%emt 0:00:21] normal} 1-0

[Event "DVM U14 2019"]
[Site "Magedburg"]
[Date "2019.12.27"]
[Round "2"]
[White "Hetzner, Hannes"]
[Black "Zeuner, Ole"]
[Result "1-0"]
[ECO "D70"]
[WhiteElo "2000"]
[BlackElo "1794"]
[Annotator "NA"]
[PlyCount "79"]
[EventDate "2019.12.27"]
[EventType "team-tourn"]
[EventRounds "7"]
[EventCountry "GER"]
[SourceTitle "playchess.com"]
[Source "ChessBase"]
[SourceQuality "1"]
[WhiteTeam "SC Erlangen"]
[BlackTeam "Schachzwerge Magdeburg"]
[TimeControl "40/5400+30:1800+30"]

1. d4 {[%emt 0:00:52]} Nf6 {[%emt 0:00:23]} 2. c4 {[%emt 0:01:00]} g6 {[%emt 0:00:24]} 3. Nf3 {[%emt 0:01:11]} Bg7 {[%emt 0:00:22]} 4. e3 {[%emt 0:00:59]} O-O {[%emt 0:00:18]} 5. Be2 {[%emt 0:03:03]} d6 {[%emt 0:00:31]} 6. O-O {[%emt 0:00:18]} c5 {[%emt 0:04:33]} 7. d5 {[%emt 0:03:08]} e6 {[%emt 0:02:45]} 8. Nc3 {[%emt 0:00:39]} exd5 {[%emt 0:04:21]} 9. cxd5 {[%emt 0:00:08]} Qe7 {[%emt 0:04:57]} 10. Ne1 {[%emt 0:29:36]} Bf5 {[%emt 0:09:37]} 11. f3 {[%emt 0:06:12]} h5 {[%emt 0:19:00]} 12. e4 {[%emt 0:01:57]} Bc8 {[%emt 0:03:00]} 13. Bg5 {[%emt 0:09:15]} a6 {[%emt 0:01:32]} 14. a4 {[%emt 0:01:20]} Qe5 {[%emt 0:01:47]} 15. Qc1 {[%emt 0:04:51]} Nbd7 {[%emt 0:06:08]} 16. Nd3 {[%emt 0:06:59]} Qe8 {[%emt 0:02:42]} 17. Bf4 {[%emt 0:03:50]} Qe7 {[%emt 0:00:51]} 18. a5 {[%emt 0:06:12]} Ne8 {[%emt 0:02:44]} 19. Bh6 {[%emt 0:05:59]} Ne5 {[%emt 0:02:32]} 20. Bg5 {[%emt 0:04:34]} Qc7 {[%emt 0:05:22]} 21. Nf2 {[%emt 0:02:31]} Nf6 {[%emt 0:05:42]} 22. h3 {[%emt 0:01:20]} Nh7 {[%emt 0:10:35]} 23. Bh6 {[%emt 0:02:11]} Qe7 {[%emt 0:00:23]} 24. Bxg7 {[%emt 0:00:10]} Kxg7 {[%emt 0:00:01]} 25. f4 {[%emt 0:00:26]} Nd7 {[%emt 0:00:51]} 26. Bf3 {[%emt 0:00:12]} Nhf6 {[%emt 0:03:39]} 27. Re1 {[%emt 0:00:45]} Re8 {[%emt 0:00:35]} 28. Nd3 {[%emt 0:01:26]} c4 {[%emt 0:01:28]} 29. Nf2 {[%emt 0:00:39]} Nc5 {[%emt 0:00:49]} 30. Qe3 {[%emt 0:00:49]} Nb3 {[%emt 0:02:28]} 31. Ra3 {[%emt 0:00:45]} Nd7 {[%emt 0:00:05]} 32. Qe2 {[%emt 0:00:50]} Nd4 {[%emt 0:00:26]} 33. Qxc4 {[%emt 0:00:09]} Nc2 {[%emt 0:00:17]} 34. Raa1 {[%emt 0:01:09]} Nxa1 {[%emt 0:01:47]} 35. Rxa1 {[%emt 0:00:07]} Qf6 {[%emt 0:00:21]} 36. Nd3 {[%emt 0:01:12]} Nc5 {[%emt 0:02:11]} 37. e5 {[%emt 0:00:55]} Qf5 {[%emt 0:00:41]} 38. Nxc5 {[%emt 0:00:17]} dxc5 {[%emt 0:00:04]} 39. Ne2 {[%emt 0:00:53]} Bd7 {[%emt 0:00:46]} 40. Ng3 {[%emt 0:00:30] normal} 1-0

[Event "DVM U14 2019"]
[Site "Magedburg"]
[Date "2019.12.27"]
[Round "2"]
[White "Schubert, Nikita"]
[Black "Yin, Haode"]
[Result "1-0"]
[ECO "E04"]
[WhiteElo "1914"]
[BlackElo "1747"]
[Annotator "NA"]
[PlyCount "87"]
[EventDate "2019.12.27"]
[EventType "team-tourn"]
[EventRounds "7"]
[EventCountry "GER"]
[SourceTitle "playchess.com"]
[Source "ChessBase"]
[SourceQuality "1"]
[WhiteTeam "ESV Gera"]
[BlackTeam "SchachAkademiePaderborn"]
[TimeControl "40/5400+30:1800+30"]

1. d4 {[%emt 0:00:00]} Nf6 {[%emt 0:00:00]} 2. c4 {[%emt 0:00:00]} e6 {[%emt 0:00:00]} 3. Nf3 {[%emt 0:00:05]} d5 {[%emt 0:00:12]} 4. g3 {[%emt 0:00:13]} dxc4 {[%emt 0:00:14]} 5. Bg2 {[%emt 0:00:22]} Bb4+ {[%emt 0:00:57]} 6. Nc3 {[%emt 0:03:00]} O-O {[%emt 0:02:27]} 7. O-O {[%emt 0:01:11]} Nc6 {[%emt 0:03:35]} 8. a3 {[%emt 0:07:41]} Be7 {[%emt 0:02:38]} 9. e3 {[%emt 0:09:47]} a6 {[%emt 0:04:26]} 10. Nd2 {[%emt 0:06:12]} Na5 {[%emt 0:10:38]} 11. Qe2 {[%emt 0:03:47]} c5 {[%emt 0:03:18]} 12. dxc5 {[%emt 0:06:34]} Nb3 {[%emt 0:05:27]} 13. Nxb3 {[%emt 0:04:30]} cxb3 {[%emt 0:00:13]} 14. Qc4 {[%emt 0:03:40]} Qc7 {[%emt 0:06:21]} 15. Qxb3 {[%emt 0:05:24]} Bxc5 {[%emt 0:01:40]} 16. Na4 {[%emt 0:04:02]} Bd6 {[%emt 0:03:40]} 17. Bd2 {[%emt 0:02:42]} Rb8 {[%emt 0:03:29]} 18. Rac1 {[%emt 0:10:29]} Qe7 {[%emt 0:02:02]} 19. Nb6 {[%emt 0:03:53]} Bc5 {[%emt 0:06:56]} 20. Bc3 {[%emt 0:06:45]} Nd7 {[%emt 0:13:28]} 21. Nxd7 {[%emt 0:11:09]} Bxd7 {[%emt 0:00:27]} 22. Be5 {[%emt 0:00:19]} Bb5 {[%emt 0:07:44]} 23. Rfd1 {[%emt 0:03:17]} Rbc8 {[%emt 0:02:06]} 24. a4 {[%emt 0:03:14]} Bc6 {[%emt 0:00:21]} 25. Bxc6 {[%emt 0:02:00]} Rxc6 {[%emt 0:00:13]} 26. Bd4 {[%emt 0:00:38]} b6 {[%emt 0:03:18]} 27. Qd3 {[%emt 0:00:59]} Qb7 {[%emt 0:02:41]} 28. Qe4 {[%emt 0:00:58]} Qc7 {[%emt 0:01:27]} 29. b4 {[%emt 0:00:48]} f5 {[%emt 0:03:31]} 30. Qg2 {[%emt 0:00:37]} Rc8 {[%emt 0:03:38]} 31. bxc5 {[%emt 0:00:01]} bxc5 {[%emt 0:00:10]} 32. Bc3 {[%emt 0:00:14]} c4 {[%emt 0:00:49]} 33. Qf3 {[%emt 0:00:30]} Qe7 {[%emt 0:01:06]} 34. e4 {[%emt 0:00:26]} fxe4 {[%emt 0:01:02]} 35. Qxe4 {[%emt 0:00:10]} Qg5 {[%emt 0:01:05]} 36. h4 {[%emt 0:00:28]} Qe7 {[%emt 0:01:41]} 37. Qd4 {[%emt 0:00:42]} Kf8 {[%emt 0:01:56]} 38. Rb1 {[%emt 0:00:47]} Kg8 {[%emt 0:00:14]} 39. Rb6 {[%emt 0:01:00]} R6c7 {[%emt 0:00:56]} 40. Qe5 {[%emt 0:00:38]} Rf8 {[%emt 0:02:20]} 41. Rxa6 {[%emt 0:03:08]} Rf5 {[%emt 0:01:18]} 42. Ra8+ {[%emt 0:00:42]} Rf8 {[%emt 0:00:34]} 43. Rxf8+ {[%emt 0:00:12]} Kxf8 {[%emt 0:00:03]} 44. Bb4 {[%emt 0:01:12] normal} 1-0

[Event "DVM U14 2019"]
[Site "Magedburg"]
[Date "2019.12.27"]
[Round "2"]
[White "Stockmann, Till"]
[Black "Högner, Tom"]
[Result "1-0"]
[ECO "C65"]
[WhiteElo "1894"]
[BlackElo "1768"]
[Annotator "NA"]
[PlyCount "87"]
[EventDate "2019.12.27"]
[EventType "team-tourn"]
[EventRounds "7"]
[EventCountry "GER"]
[SourceTitle "playchess.com"]
[Source "ChessBase"]
[SourceQuality "1"]
[WhiteTeam "Schachzwerge Magdeburg"]
[BlackTeam "SC Erlangen"]
[TimeControl "40/5400+30:1800+30"]

1. e4 {[%emt 0:00:00]} e5 {[%emt 0:00:00]} 2. Nf3 {[%emt 0:00:00]} Nc6 {[%emt 0:00:00]} 3. Bb5 {[%emt 0:00:06]} Nf6 {[%emt 0:00:41]} 4. d3 {[%emt 0:00:23]} Bc5 {[%emt 0:00:45]} 5. O-O {[%emt 0:00:47]} d6 {[%emt 0:01:31]} 6. c3 {[%emt 0:01:28]} O-O {[%emt 0:02:49]} 7. h3 {[%emt 0:10:03]} Bd7 {[%emt 0:05:49]} 8. Re1 {[%emt 0:02:15]} a6 {[%emt 0:01:09]} 9. Ba4 {[%emt 0:00:14]} b5 {[%emt 0:13:08]} 10. Bb3 {[%emt 0:00:45]} Re8 {[%emt 0:04:38]} 11. Nbd2 {[%emt 0:02:40]} Bb6 {[%emt 0:07:11]} 12. Nf1 {[%emt 0:01:49]} Ne7 {[%emt 0:02:12]} 13. Bg5 {[%emt 0:02:50]} Ng6 {[%emt 0:00:52]} 14. Ng3 {[%emt 0:01:18]} h6 {[%emt 0:02:55]} 15. Be3 {[%emt 0:00:37]} c5 {[%emt 0:04:25]} 16. Nh2 {[%emt 0:02:37]} Be6 {[%emt 0:04:26]} 17. Ng4 {[%emt 0:02:32]} Nxg4 {[%emt 0:05:24]} 18. hxg4 {[%emt 0:00:13]} Bxb3 {[%emt 0:06:47]} 19. axb3 {[%emt 0:00:52]} Kh7 {[%emt 0:05:34]} 20. Qf3 {[%emt 0:02:15]} f6 {[%emt 0:04:12]} 21. Nf5 {[%emt 0:07:12]} Rh8 {[%emt 0:03:43]} 22. Qh3 {[%emt 0:03:44]} Kg8 {[%emt 0:02:51]} 23. Qf3 {[%emt 0:02:53]} Ne7 {[%emt 0:02:27]} 24. Ng3 {[%emt 0:01:32]} Kf7 {[%emt 0:05:13]} 25. Qd1 {[%emt 0:02:59]} Ng6 {[%emt 0:03:05]} 26. b4 {[%emt 0:01:13]} Qd7 {[%emt 0:02:17]} 27. Nf5 {[%emt 0:03:51]} Ne7 {[%emt 0:02:52]} 28. Qb3+ {[%emt 0:02:05]} Kf8 {[%emt 0:00:09]} 29. Red1 {[%emt 0:01:31]} Nxf5 {[%emt 0:00:32]} 30. gxf5 {[%emt 0:00:12]} Qf7 {[%emt 0:00:35]} 31. Qa3 {[%emt 0:01:07]} Qc7 {[%emt 0:01:07]} 32. bxc5 {[%emt 0:02:23]} Bxc5 {[%emt 0:03:09]} 33. Bxc5 {[%emt 0:01:28]} dxc5 {[%emt 0:00:32]} 34. d4 {[%emt 0:00:36]} exd4 {[%emt 0:00:31]} 35. cxd4 {[%emt 0:00:12]} b4 {[%emt 0:00:11]} 36. Qa5 {[%emt 0:00:53]} Qxa5 37. Rxa5 {[%emt 0:00:05]} c4 {[%emt 0:03:31]} 38. Rc5 {[%emt 0:00:23]} c3 {[%emt 0:00:17]} 39. bxc3 {[%emt 0:00:21]} bxc3 {[%emt 0:00:07]} 40. Rxc3 {[%emt 0:00:07]} Kg8 {[%emt 0:00:38]} 41. Ra1 {[%emt 0:31:39]} Kh7 {[%emt 0:31:12]} 42. Rc6 {[%emt 0:00:53]} Rhd8 {[%emt 0:00:00]} 43. d5 {[%emt 0:00:00]} a5 {[%emt 0:00:00]} 44. Rc5 {[%emt 0:00:00] normal} 1-0

[Event "DVM U14 2019"]
[Site "Magedburg"]
[Date "2019.12.27"]
[Round "2"]
[White "Heutling, Elina"]
[Black "Walders, Marc"]
[Result "1-0"]
[ECO "C06"]
[WhiteElo "1796"]
[BlackElo "1819"]
[Annotator "NA"]
[PlyCount "67"]
[EventDate "2019.12.27"]
[EventType "team-tourn"]
[EventRounds "7"]
[EventCountry "GER"]
[SourceTitle "playchess.com"]
[Source "ChessBase"]
[SourceQuality "1"]
[WhiteTeam "Schachzwerge Magdeburg"]
[BlackTeam "SC Erlangen"]
[TimeControl "40/5400+30:1800+30"]

1. e4 {[%emt 0:00:00]} e6 {[%emt 0:00:00]} 2. d4 {[%emt 0:00:00]} d5 {[%emt 0:00:00]} 3. Nd2 {[%emt 0:00:00]} Nf6 {[%emt 0:00:00]} 4. e5 {[%emt 0:00:00]} Nfd7 {[%emt 0:00:00]} 5. Bd3 {[%emt 0:00:08]} c5 {[%emt 0:00:05]} 6. c3 {[%emt 0:00:07]} Nc6 {[%emt 0:00:33]} 7. Ne2 {[%emt 0:00:39]} cxd4 {[%emt 0:00:29]} 8. cxd4 {[%emt 0:00:18]} f6 {[%emt 0:01:23]} 9. exf6 {[%emt 0:06:50]} Nxf6 {[%emt 0:00:10]} 10. O-O {[%emt 0:00:19]} Bd6 {[%emt 0:02:46]} 11. Nf3 {[%emt 0:02:05]} O-O {[%emt 0:01:36]} 12. Bf4 {[%emt 0:03:29]} Bxf4 {[%emt 0:09:50]} 13. Nxf4 {[%emt 0:00:14]} Qd6 {[%emt 0:00:34]} 14. Ne2 {[%emt 0:06:44]} Ng4 {[%emt 0:03:21]} 15. Ng3 {[%emt 0:01:55]} h6 {[%emt 0:05:57]} 16. h3 {[%emt 0:09:38]} Nf6 {[%emt 0:03:44]} 17. Re1 {[%emt 0:01:53]} Bd7 {[%emt 0:03:45]} 18. Qe2 {[%emt 0:04:56]} Kh8 {[%emt 0:06:50]} 19. Rad1 {[%emt 0:05:43]} Qb4 {[%emt 0:04:49]} 20. a3 {[%emt 0:03:42]} Qb6 {[%emt 0:03:22]} 21. Bb1 {[%emt 0:04:28]} Rac8 {[%emt 0:05:13]} 22. Ne5 {[%emt 0:16:57]} Nxe5 {[%emt 0:09:42]} 23. dxe5 {[%emt 0:02:51]} Bb5 {[%emt 0:02:24]} 24. Qd2 {[%emt 0:03:07]} Nd7 {[%emt 0:01:59]} 25. Re3 {[%emt 0:08:15]} Rf4 {[%emt 0:08:10]} 26. Rb3 {[%emt 0:09:30]} Rcf8 {[%emt 0:06:14]} 27. Qc2 {[%emt 0:00:20]} R4f5 {[%emt 0:13:27]} 28. Nxf5 {[%emt 0:02:56]} Rxf5 {[%emt 0:00:17]} 29. g4 {[%emt 0:01:51]} Ba4 {[%emt 0:06:19]} 30. gxf5 {[%emt 0:00:19]} Bxb3 {[%emt 0:00:20]} 31. Qc8+ {[%emt 0:00:03]} Kh7 {[%emt 0:00:21]} 32. f6+ {[%emt 0:00:07]} g6 {[%emt 0:00:07]} 33. Qxd7+ {[%emt 0:00:05]} Kg8 {[%emt 0:00:15]} 34. Qg7# {normal} 1-0

[Event "DVM U14 2019"]
[Site "Magedburg"]
[Date "2019.12.27"]
[Round "2"]
[White "Reichmann, Felix"]
[Black "Garner, Isaac"]
[Result "1/2-1/2"]
[ECO "A13"]
[WhiteElo "1791"]
[BlackElo "2040"]
[Annotator "NA"]
[PlyCount "41"]
[EventDate "2019.12.27"]
[EventType "team-tourn"]
[EventRounds "7"]
[EventCountry "GER"]
[SourceTitle "playchess.com"]
[Source "ChessBase"]
[SourceQuality "1"]
[WhiteTeam "SF Nordost Berlin"]
[BlackTeam "Hamburger SK"]
[TimeControl "40/5400+30:1800+30"]

1. c4 {[%emt 0:00:00]} e6 {[%emt 0:00:00]} 2. g3 {[%emt 0:00:00]} d5 {[%emt 0:00:00]} 3. Bg2 {[%emt 0:00:00]} Nf6 {[%emt 0:00:00]} 4. Nf3 {[%emt 0:00:00]} dxc4 {[%emt 0:00:13]} 5. O-O {[%emt 0:00:00]} c5 {[%emt 0:03:39]} 6. a4 {[%emt 0:03:07]} Nc6 {[%emt 0:02:54]} 7. Na3 {[%emt 0:00:28]} Be7 {[%emt 0:01:55]} 8. Nxc4 {[%emt 0:00:17]} O-O {[%emt 0:00:59]} 9. b3 {[%emt 0:01:20]} Nd5 {[%emt 0:03:47]} 10. Bb2 {[%emt 0:01:53]} Bf6 {[%emt 0:02:02]} 11. d4 {[%emt 0:14:31]} cxd4 {[%emt 0:14:15]} 12. Nxd4 {[%emt 0:00:52]} Nxd4 {[%emt 0:10:41]} 13. Bxd4 {[%emt 0:00:10]} Nc3 {[%emt 0:04:34]} 14. Bxc3 {[%emt 0:01:02]} Bxc3 {[%emt 0:00:06]} 15. Rc1 {[%emt 0:01:19]} Bf6 {[%emt 0:01:19]} 16. Qxd8 {[%emt 0:03:30]} Rxd8 {[%emt 0:01:07]} 17. Rfd1 {[%emt 0:00:16]} Bd7 {[%emt 0:02:16]} 18. Na5 {[%emt 0:05:38]} Rac8 {[%emt 0:07:09]} 19. Rxc8 {[%emt 0:05:52]} Bxc8 {[%emt 0:00:24]} 20. Rxd8+ {[%emt 0:00:29]} Bxd8 {[%emt 0:00:06]} 21. Bxb7 {[%emt 0:00:54] normal} 1/2-1/2